bitfinex/quotes_ETHUSD_20240717
["timestamp","ask_amount","ask_price","bid_price","bid_amount"]
[1721183717891,2.86853,3486.1,3486.0,0.5]
[1721183718112,3.442234,3486.1,3486.0,0.5]
[1721183722535,3.442234,3486.1,3486.0,0.2213]
[1721183723031,3.442234,3486.1,3486.0,0.2479344]
[1721183724634,8.582164,3486.1,3486.0,0.2479344]
[1721183725034,8.582164,3486.1,3486.0,0.2213]
[1721183726928,0.573704,3486.1,3486.0,0.2213]
[1721183727291,0.573704,3486.1,3486.0,0.2480416]
[1721183727833,2.86848,3486.2,3486.0,0.2480416]
[1721183729101,2.86853,3486.1,3486.0,0.2480416]
[1721183729439,2.86853,3486.1,3486.0,0.2213]
[1721183729962,5.73706,3486.1,3486.0,0.2213]
[1721183730112,8.10486,3486.1,3486.0,0.2213]
[1721183730318,9.202184,3486.1,3486.0,0.2213]
[1721183734349,12.202184,3486.1,3486.0,0.2213]
[1721183735615,17.528714,3486.1,3486.0,0.2213]
[1721183735823,18.078714,3486.1,3486.0,0.2213]
[1721183740043,23.964244,3486.1,3486.0,0.2213]
[1721183740874,20.947244,3486.1,3486.0,0.2213]
[1721183741574,18.078714,3486.1,3486.0,0.2213]
[1721183742071,20.947244,3486.1,3486.0,0.2213]
[1721183742572,23.964244,3486.1,3486.0,0.2213]
[1721183742769,23.964244,3486.1,3484.3,0.29673125]
[1721183742770,2.86974,3484.7,3484.3,0.29673125]
[1721183742969,2.86974,3484.7,3484.0,2.3071]
[1721183743169,2.86985,3484.5,3484.4,0.13199201]
[1721183743469,2.86985,3484.5,3484.0,2.3071]
[1721183743674,2.86974,3484.7,3484.4,0.13199201]
[1721183743859,2.86954,3484.9,3484.2,2.87009]
[1721183744056,2.86954,3484.9,3484.5,0.13197379]
[1721183744270,2.86954,3484.9,3484.2,2.87009]
[1721183744468,2.86966,3484.8,3484.6,0.13195557]
[1721183744671,2.86966,3484.8,3484.5,2.3352]
[1721183744873,2.86966,3484.8,3484.7,0.13193735]
[1721183745047,2.86966,3484.8,3484.6,0.13195557]
[1721183745253,2.86966,3484.8,3484.7,0.13193735]
[1721183745652,2.86966,3484.8,3484.5,2.3352]
[1721183745874,2.86966,3484.8,3484.7,0.13193735]
[1721183746177,2.86922,3485.3,3484.7,0.13193735]
[1721183746376,2.86917,3485.4,3484.5,5.20504]
[1721183746574,2.86921,3485.3,3484.8,0.13191914]
[1721183746777,2.86921,3485.3,3484.6,0.807495]
[1721183746941,2.86921,3485.3,3484.9,0.13196498]
[1721183747271,2.86921,3485.3,3484.6,0.807495]
[1721183747508,2.86927,3485.2,3485.0,0.13194677]
[1721183747648,2.86927,3485.2,3484.5,5.20504]
[1721183747851,2.86927,3485.2,3485.1,0.13192855]
[1721183748054,2.86927,3485.2,3484.5,5.20504]
[1721183748239,2.86911,3485.4,3484.5,2.3352]
[1721183748440,3.0,3485.7,3484.9,2.86951]
[1721183748641,2.86885,3485.8,3485.0,2.3408]
[1721183748854,3.0,3485.7,3485.0,2.3408]
[1721183749195,2.86863,3486.0,3485.0,2.3408]
[1721183749370,2.86863,3486.0,3484.6,0.23352]
[1721183749371,2.86834,3486.4,3484.8,2.3408]
[1721183749705,2.86822,3486.5,3485.7,2.86881]
[1721183750054,2.86822,3486.5,3485.8,0.1317221]
[1721183751071,3.0,3486.4,3485.8,0.1317221]
[1721183751672,5.86829,3486.4,3485.8,0.1317221]
[1721183752005,5.86829,3486.4,3485.6,5.33014]
[1721183752605,5.86829,3486.4,3485.7,0.13174031]
[1721183754304,4.119552,3486.4,3485.7,0.13174031]
[1721183754506,3.0,3486.5,3485.7,0.13174031]
[1721183754709,2.4591,3486.6,3485.7,0.13174031]
[1721183754710,2.86845,3486.3,3485.7,0.13174031]
[1721183754887,2.86854,3486.1,3485.7,0.13174031]
[1721183755493,2.86854,3486.1,3485.4,2.86909]
[1721183755714,2.86854,3486.1,3485.5,0.13177673]
[1721183756891,2.86862,3486.0,3485.5,0.13177673]
[1721183760613,2.4591,3486.6,3485.5,0.13177673]
[1721183760793,2.86843,3486.3,3485.6,5.17032]
[1721183761136,2.86843,3486.3,3485.7,0.13150503]
[1721183761789,2.86829,3486.4,3485.7,1.02948573]
[1721183762000,2.86829,3486.4,3485.7,3.89834573]
[1721183762301,2.86821,3486.5,3485.7,3.89834573]
[1721183763033,2.8681,3486.7,3485.8,2.86876]
[1721183763310,5.86818,3486.6,3485.9,0.13146861]
[1721183763885,2.8682,3486.5,3485.9,0.13146861]
[1721183764087,2.86832,3486.4,3485.7,0.8979807]
[1721183764281,2.86832,3486.4,3485.8,0.13148682]
[1721183764819,5.86817,3486.6,3485.8,1.03835057]
[1721183765001,1.18980231,3486.8,3485.9,0.05737301]
[1721183765206,1.18980231,3487.2,3486.4,2.86828]
[1721183765518,2.86755,3487.3,3486.5,0.13132664]
[1721183765717,2.86755,3487.3,3486.5,3.8294213]
[1721183765882,2.86755,3487.3,3486.6,0.12693089]
[1721183766296,2.8674,3487.5,3486.6,2.99504089]
[1721183766506,4.05702231,3487.7,3486.7,5.29897]
[1721183766708,2.86722,3487.7,3486.8,2.86789]
[1721183766896,2.86722,3487.7,3486.8,2.994719]
[1721183767302,3.78516923,3487.7,3486.8,2.994719]
[1721183767486,2.86731,3487.6,3486.8,2.994719]
[1721183767996,0.91794923,3487.7,3486.8,0.126829]
[1721183767997,5.86739,3487.5,3486.8,0.126829]
[1721183768388,5.86739,3487.5,3486.8,2.994779]
[1721183768917,2.86764,3487.2,3486.8,0.126829]
[1721183769134,3.441221,3487.1,3486.4,5.28238]
[1721183770400,2.342,3487.0,3485.6,2.4141]
[1721183770600,2.342,3487.0,3485.7,2.86884]
[1721183770601,2.86829,3486.4,3485.7,2.86884]
[1721183770920,2.86812,3486.6,3485.7,2.99559627]
[1721183771124,2.86826,3486.5,3485.7,0.12675627]
[1721183771422,2.8683,3486.4,3485.7,2.99556627]
[1721183772122,3.441778,3486.6,3485.7,2.99556627]
[1721183772328,3.441778,3486.6,3485.8,2.86876]
[1721183772498,2.86809,3486.7,3486.0,2.86856]
[1721183772702,2.86809,3486.7,3486.1,0.12668345]
[1721183774244,2.342,3487.0,3486.1,0.12668345]
[1721183774245,2.86829,3486.4,3486.1,0.12668345]
[1721183774447,0.573648,3486.3,3485.7,2.86886]
[1721183774619,2.86829,3486.4,3486.2,0.12682983]
[1721183774817,2.86829,3486.4,3485.7,2.86886]
[1721183775017,2.86829,3486.4,3486.3,0.12681163]
[1721183775358,2.342,3487.0,3485.6,2.4141]
[1721183775359,2.86854,3486.1,3485.6,2.4141]
[1721183775734,2.86842,3486.3,3485.6,2.4141]
[1721183775938,2.86845,3486.2,3485.6,2.4141]
[1721183776247,2.868,3486.8,3485.6,2.4141]
[1721183776450,3.821,3486.7,3485.6,2.4141]
[1721183777157,2.86854,3486.1,3485.6,2.4141]
[1721183777336,2.86842,3486.3,3485.6,2.4141]
[1721183778549,2.86842,3486.3,3485.7,0.12696254]
[1721183778751,2.86853,3486.1,3485.7,0.12696254]
[1721183779629,2.86842,3486.3,3485.7,0.12696254]
[1721183779951,2.86845,3486.2,3485.7,0.12696254]
[1721183780157,3.442137,3486.2,3485.7,0.12696254]
[1721183781263,0.573687,3486.2,3485.7,0.12696254]
[1721183781427,2.8684,3486.3,3485.7,0.12696254]
[1721183782629,2.86845,3486.2,3485.7,0.12696254]
[1721183786764,2.86845,3486.2,3485.2,2.86922]
[1721183786765,2.86862,3486.0,3485.2,2.86922]
[1721183786944,2.86862,3486.0,3485.3,0.12707707]
[1721183787271,3.442327,3486.0,3485.3,2.99625707]
[1721183790165,2.86862,3486.0,3485.3,2.99625707]
[1721183792464,5.31235449,3486.7,3485.5,2.86895]
[1721183792465,1.18980231,3486.5,3485.5,2.86895]
[1721183792764,2.86837,3486.3,3485.6,0.1270671]
[1721183793136,2.86849,3486.2,3485.6,0.1270671]
[1721183793334,2.86854,3486.1,3485.6,0.1270671]
[1721183793534,2.86854,3486.1,3485.4,5.22169]
[1721183793758,2.86854,3486.1,3485.5,0.12708531]
[1721183797881,2.86843,3486.3,3485.5,2.99609531]
[1721183798050,2.86831,3486.4,3485.5,2.99609531]
[1721183798051,2.86845,3486.2,3485.5,3.81787784]
[1721183799866,2.86845,3486.2,3485.5,2.99609531]
[1721183800471,2.86844,3486.3,3485.5,2.99609531]
[1721183800970,2.86845,3486.2,3485.5,2.99609531]
[1721183801784,2.86854,3486.1,3485.5,2.99609531]
[1721183802083,2.86845,3486.2,3485.5,2.99609531]
[1721183802501,4.05802231,3486.5,3485.7,2.86885]
[1721183802647,3.0,3486.5,3485.8,2.86877]
[1721183802999,1.18980231,3486.6,3485.8,2.99582153]
[1721183803000,2.86812,3486.6,3485.8,2.99582153]
[1721183803144,2.86821,3486.5,3485.8,2.99582153]
[1721183803344,3.821,3486.7,3485.8,2.99582153]
[1721183803762,6.68904,3486.7,3485.9,2.86864]
[1721183803976,6.68904,3486.7,3486.0,0.12701512]
[1721183805469,7.87884231,3486.7,3486.0,0.12701512]
[1721183805670,7.05784231,3486.7,3486.0,0.12701512]
[1721183806660,5.86804,3486.7,3486.0,0.12701512]
[1721183807061,2.86814,3486.6,3486.0,0.12701512]
[1721183807267,3.0,3486.5,3486.0,0.12701512]
[1721183807607,2.3242,3486.4,3485.4,2.8691]
[1721183807745,2.3242,3486.4,3486.1,0.12693288]
[1721183807746,5.7369,3486.2,3486.1,0.12693288]
[1721183808073,5.7369,3486.2,3485.3,2.3151]
[1721183808074,2.86864,3486.0,3485.3,5.18424]
[1721183808470,2.86864,3486.0,3485.4,0.12700674]
[1721183808780,2.86864,3486.0,3485.4,2.99609674]
[1721183811083,2.86864,3486.0,3485.4,0.12700674]
[1721183811245,0.573709,3485.9,3485.4,0.12700674]
[1721183811699,3.442409,3485.9,3485.4,0.12700674]
[1721183813198,2.8687,3485.9,3485.4,0.12700674]
[1721183813705,2.86859,3486.1,3485.4,2.99610674]
[1721183813997,1.18980231,3486.4,3485.5,5.24529]
[1721183814186,3.0,3486.5,3485.9,2.86868]
[1721183814373,3.0,3486.5,3486.0,0.12696895]
[1721183814578,3.0,3486.5,3485.9,2.86868]
[1721183814884,3.0,3486.5,3486.0,0.12696895]
[1721183815293,3.0,3486.5,3485.9,2.86868]
[1721183815488,4.18980231,3486.5,3486.1,0.12695075]
[1721183815671,0.85537366,3486.4,3486.0,0.12696895]
[1721183815868,0.85537366,3486.4,3485.9,2.86868]
[1721183816067,0.85537366,3486.4,3486.1,0.12695075]
[1721183816271,0.85537366,3486.4,3486.0,0.12696895]
[1721183816481,0.85537366,3486.4,3485.9,2.86868]
[1721183816700,0.85537366,3486.4,3486.1,0.12695075]
[1721183816897,0.85537366,3486.4,3486.0,0.12696895]
[1721183817065,4.18980231,3486.5,3485.9,2.86868]
[1721183817270,4.18980231,3486.5,3486.1,0.12695075]
[1721183817511,4.18980231,3486.5,3486.0,0.12696895]
[1721183817800,4.18980231,3486.5,3486.1,0.12695075]
[1721183818199,4.18980231,3486.5,3485.9,2.86868]
[1721183818703,4.18980231,3486.5,3486.0,0.12696895]
[1721183818921,5.57171135,3486.5,3486.0,0.12696895]
[1721183819080,5.57171135,3486.5,3485.9,2.86868]
[1721183819406,5.57171135,3486.5,3486.0,0.12696895]
[1721183819794,5.57171135,3486.5,3485.9,2.86868]
[1721183819995,5.57171135,3486.5,3486.1,0.12695075]
[1721183820308,5.57171135,3486.5,3486.0,0.12696895]
[1721183820472,0.99368804,3486.4,3485.9,2.86868]
[1721183820673,5.57171135,3486.5,3486.1,0.12696862]
[1721183820874,5.57171135,3486.5,3486.0,0.12698682]
[1721183821068,1.18980231,3486.5,3485.9,2.86868]
[1721183821268,2.58221486,3490.6,3486.4,2.86823]
[1721183821269,1.18980231,3486.9,3486.4,2.86823]
[1721183821521,1.18980231,3487.0,3486.4,2.86823]
[1721183821809,4.05751231,3487.1,3486.5,0.12681244]
[1721183821974,5.14893345,3487.1,3486.5,0.12681244]
[1721183822169,1.7964589,3487.6,3486.6,2.323]
[1721183822170,4.05743231,3487.2,3486.6,2.323]
[1721183822392,4.05743231,3487.2,3486.7,0.12677455]
[1721183822624,2.86763,3487.2,3486.7,0.12677455]
[1721183822804,2.86771,3487.1,3486.7,0.12677455]
[1721183823302,4.05738231,3487.3,3486.5,2.86819]
[1721183823514,3.70977671,3487.2,3486.8,0.12671915]
[1721183823710,2.86772,3487.1,3486.5,2.86819]
[1721183823925,0.84214671,3487.2,3486.9,0.12670095]
[1721183824213,0.84214671,3487.2,3486.5,2.86819]
[1721183824214,0.84214671,3487.2,3486.7,2.86803]
[1721183824417,4.05729231,3487.4,3487.0,0.12656459]
[1721183824704,4.05729231,3487.4,3486.7,2.86803]
[1721183824903,2.86749,3487.4,3487.1,0.12651306]
[1721183825104,2.86749,3487.4,3486.7,2.86803]
[1721183825306,2.86754,3487.3,3486.6,2.86811]
[1721183825644,0.69247323,3487.2,3486.7,0.12658584]
[1721183826615,0.69247323,3487.2,3486.7,2.99461584]
[1721183826821,5.86746,3487.4,3486.7,2.99461584]
[1721183827312,5.86746,3487.4,3486.8,2.4561]
[1721183827629,5.86746,3487.4,3486.9,0.12640987]
[1721183829988,2.86756,3487.3,3486.9,0.12640987]
[1721183830309,2.86756,3487.3,3486.6,2.86811]
[1721183830512,0.873502,3487.2,3487.0,0.12637977]
[1721183830835,0.873502,3487.2,3487.1,0.12636158]
[1721183831181,0.373502,3487.2,3486.6,2.86811]
[1721183831377,2.86756,3487.3,3486.7,0.12643436]
[1721183832403,5.2762,3487.4,3486.7,0.12643436]
[1721183832607,5.2762,3487.4,3486.7,2.99446436]
[1721183833019,3.0,3487.4,3486.7,2.99446436]
[1721183833219,3.0,3487.4,3486.8,2.3578]
[1721183833724,3.0,3487.4,3486.9,0.12640094]
[1721183833725,5.86747,3487.4,3486.9,0.12640094]
[1721183835521,6.740956,3487.4,3486.9,0.12640094]
[1721183835922,6.740956,3487.4,3486.7,2.86803]
[1721183836226,5.86747,3487.4,3486.7,2.86803]
[1721183836529,5.86747,3487.4,3486.8,0.12641914]
[1721183836698,2.86755,3487.3,3486.8,0.12641914]
[1721183837102,2.86755,3487.3,3486.6,2.86811]
[1721183837305,2.86755,3487.3,3486.9,0.12637266]
[1721183837505,3.741044,3487.3,3486.6,2.86811]
[1721183837707,2.86755,3487.3,3487.0,0.12635447]
[1721183837908,2.86755,3487.3,3486.7,2.86803]
[1721183838103,2.86755,3487.3,3487.1,0.12633627]
[1721183838398,2.86755,3487.3,3487.2,0.12631808]
[1721183838608,2.86755,3487.3,3486.6,2.86806]
[1721183838814,2.86755,3487.3,3487.2,0.12631957]
[1721183839011,2.86755,3487.3,3486.6,2.86806]
[1721183839012,3.843444,3487.3,3486.6,2.86806]
[1721183839307,2.86755,3487.3,3486.7,0.12641054]
[1721183839698,2.86755,3487.3,3486.7,2.99443054]
[1721183839897,5.86746,3487.4,3486.7,2.86802]
[1721183840219,2.3021,3487.8,3486.9,2.86781]
[1721183840420,2.86663,3488.5,3486.8,0.12639532]
[1721183840421,1.18980231,3488.1,3487.1,3.89164]
[1721183840718,5.38528059,3488.3,3487.1,3.89164]
[1721183840719,2.86673,3488.3,3487.5,2.86731]
[1721183840933,5.30909,3488.5,3487.6,5.25968]
[1721183841238,5.30909,3488.5,3487.8,2.86712]
[1721183841600,5.30909,3488.5,3487.9,0.12617737]
[1721183842011,2.86659,3488.5,3487.9,0.12617737]
[1721183842211,6.43845231,3488.9,3487.9,3.05048664]
[1721183842445,2.86632,3488.8,3488.1,2.86688]
[1721183842809,2.86632,3488.8,3488.2,0.12600382]
[1721183845013,2.8664,3488.7,3488.2,0.12600382]
[1721183845209,2.8664,3488.7,3487.6,2.3924]
[1721183845210,2.8664,3488.7,3488.0,2.86695]
[1721183845417,2.8664,3488.7,3487.7,2.86719]
[1721183845418,2.8664,3488.7,3488.1,0.12599821]
[1721183845736,2.8664,3488.7,3487.9,2.86703]
[1721183845737,2.86648,3488.6,3487.9,2.86703]
[1721183845934,2.86648,3488.6,3488.2,0.12598003]
[1721183846234,2.86648,3488.6,3487.9,2.86703]
[1721183846235,2.86648,3488.6,3488.3,0.12596184]
[1721183846621,2.86648,3488.6,3487.9,2.86703]
[1721183846932,2.86648,3488.6,3488.0,0.12601639]
[1721183847139,2.86673,3488.3,3488.0,0.12601639]
[1721183847434,2.86673,3488.3,3488.1,0.12599821]
[1721183847936,2.86673,3488.3,3487.6,2.86729]
[1721183848108,2.86673,3488.3,3488.2,0.12598003]
[1721183848313,2.86673,3488.3,3487.7,3.153939]
[1721183848510,2.86673,3488.3,3488.2,0.12598003]
[1721183848744,2.86673,3488.3,3487.7,3.153939]
[1721183848947,2.86673,3488.3,3488.2,0.12598003]
[1721183849148,2.86673,3488.3,3487.7,2.86721]
[1721183849358,2.86673,3488.3,3488.2,0.12581343]
[1721183849558,2.86673,3488.3,3487.7,3.440669]
[1721183849559,2.86673,3488.3,3487.7,2.86721]
[1721183850160,2.86673,3488.3,3487.8,0.12588616]
[1721183850519,2.86673,3488.3,3487.7,2.86721]
[1721183850715,2.86673,3488.3,3487.9,0.12586797]
[1721183850916,2.86673,3488.3,3487.8,0.12588616]
[1721183851122,2.86673,3488.3,3488.0,0.12584979]
[1721183851342,2.86673,3488.3,3487.9,0.12586797]
[1721183851543,2.86673,3488.3,3488.1,0.12583161]
[1721183851858,2.86673,3488.3,3487.7,2.86721]
[1721183852158,2.86673,3488.3,3488.2,0.12581343]
[1721183852624,2.86673,3488.3,3487.5,2.86738]
[1721183852957,2.86673,3488.3,3487.7,2.86721]
[1721183853345,2.86673,3488.3,3487.8,0.12588616]
[1721183853859,2.86673,3488.3,3487.9,0.12552924]
[1721183854063,2.86673,3488.3,3487.6,2.86729]
[1721183854351,2.86673,3488.3,3488.0,0.12551106]
[1721183854659,2.86673,3488.3,3488.1,0.12549287]
[1721183855027,2.86673,3488.3,3487.6,2.86729]
[1721183855231,2.86673,3488.3,3487.7,0.12556561]
[1721183855635,2.86673,3488.3,3487.1,2.86766]
[1721183855636,2.86701,3488.0,3487.1,2.86766]
[1721183855844,0.523213,3488.3,3487.1,2.86766]
[1721183855845,0.523213,3488.3,3487.8,0.12554743]
[1721183856044,2.86719,3487.8,3487.1,2.86766]
[1721183856356,2.86724,3487.7,3486.9,5.29047]
[1721183856528,2.86739,3487.5,3487.2,0.12183089]
[1721183856723,2.86739,3487.5,3486.7,2.86797]
[1721183856927,2.86739,3487.5,3487.3,0.1218127]
[1721183857153,2.86739,3487.5,3486.7,4.44181447]
[1721183857327,2.86739,3487.5,3487.4,0.12179451]
[1721183857527,2.86739,3487.5,3486.7,4.44181447]
[1721183857961,2.86724,3487.7,3486.8,2.98983367]
[1721183858158,2.86709,3487.9,3486.9,4.33902481]
[1721183858458,2.86709,3487.9,3487.1,2.8677]
[1721183858762,2.86715,3487.8,3487.1,2.8677]
[1721183858928,2.86715,3487.8,3487.2,0.12183089]
[1721183860749,2.86709,3487.9,3487.2,0.12183089]
[1721183860750,2.86723,3487.7,3487.2,0.12183089]
[1721183861545,2.86723,3487.7,3487.0,2.86779]
[1721183861745,2.86723,3487.7,3487.3,0.1218127]
[1721183861948,3.440662,3487.7,3486.8,2.3654]
[1721183862154,3.440662,3487.7,3486.2,4.156]
[1721183862155,8.04286,3487.5,3487.4,0.12179451]
[1721183862336,5.17548,3487.5,3486.6,3.0]
[1721183862536,2.86763,3487.2,3486.6,3.0]
[1721183862758,2.86763,3487.2,3486.7,0.12192186]
[1721183863164,2.86763,3487.2,3486.5,6.16790467]
[1721183863464,2.86763,3487.2,3486.5,7.55370114]
[1721183863674,2.86763,3487.2,3486.6,0.12219144]
[1721183866271,2.86782,3487.0,3486.6,0.12219144]
[1721183868985,5.73531,3487.2,3486.6,0.12219144]
[1721183869135,2.86749,3487.4,3486.6,0.12219144]
[1721183869339,2.86749,3487.4,3486.7,0.56557261]
[1721183869785,2.86755,3487.3,3486.8,0.12219522]
[1721183870040,2.86764,3487.2,3486.7,0.56557261]
[1721183870240,2.86764,3487.2,3486.8,0.12219522]
[1721183870491,2.86764,3487.2,3486.7,0.56557261]
[1721183870692,5.73501,3487.4,3486.9,0.12217702]
[1721183870872,2.86749,3487.4,3486.8,0.12219522]
[1721183871042,2.86749,3487.4,3487.0,0.12215883]
[1721183871543,2.86733,3487.6,3486.9,2.86782]
[1721183871747,2.8676,3487.3,3487.1,0.12214064]
[1721183871975,2.86739,3487.5,3486.6,2.86809]
[1721183872446,2.86739,3487.5,3486.8,2.86792]
[1721183872651,2.86739,3487.5,3486.9,0.12217702]
[1721183872872,2.86739,3487.5,3486.8,2.86792]
[1721183873269,2.86739,3487.5,3486.9,0.12217702]
[1721183873508,2.86739,3487.5,3486.8,2.86792]
[1721183873710,2.86739,3487.5,3487.0,0.12215883]
[1721183873914,2.86739,3487.5,3486.8,2.86792]
[1721183874114,2.86739,3487.5,3487.1,0.12214064]
[1721183874317,2.86739,3487.5,3486.8,2.86792]
[1721183874677,5.73485,3487.5,3486.9,0.12219636]
[1721183874877,2.86739,3487.5,3486.8,2.86792]
[1721183875083,2.86739,3487.5,3487.0,0.12217816]
[1721183875414,2.86739,3487.5,3486.9,0.69579736]
[1721183875742,2.86739,3487.5,3486.9,0.573601]
[1721183877013,2.86746,3487.4,3486.9,0.573601]
[1721183877371,2.86746,3487.4,3487.0,0.12217816]
[1721183878584,2.86725,3487.7,3487.0,0.12217816]
[1721183878585,2.86735,3487.6,3487.0,0.12217816]
[1721183878782,2.86735,3487.6,3487.1,0.45876992]
[1721183879127,2.8673,3487.6,3487.2,0.12214178]
[1721183879497,2.8673,3487.6,3486.9,4.465411]
[1721183879719,2.8673,3487.6,3487.3,0.12212359]
[1721183879916,2.8673,3487.6,3486.9,3.89181]
[1721183880235,2.8673,3487.6,3487.4,0.1221054]
[1721183880448,2.8673,3487.6,3486.9,3.89181]
[1721183881057,2.86763,3487.2,3487.0,0.12217816]
[1721183881356,2.3053,3487.5,3486.9,1.024]
[1721183881549,2.86747,3487.4,3487.1,0.12215997]
[1721183881707,2.86747,3487.4,3486.9,1.024]
[1721183881910,2.86747,3487.4,3487.2,0.12214178]
[1721183882132,2.86747,3487.4,3486.9,1.024]
[1721183882318,2.86747,3487.4,3487.3,0.12212359]
[1721183882520,2.86747,3487.4,3486.9,1.024]
[1721183883158,2.86733,3487.6,3487.0,0.12217816]
[1721183883304,2.86738,3487.5,3487.1,0.40140882]
[1721183883754,2.86738,3487.5,3487.2,0.12214178]
[1721183884107,2.86747,3487.4,3486.9,1.024]
[1721183884453,2.86747,3487.4,3487.3,0.12212359]
[1721183884638,2.86736,3487.6,3486.9,1.024]
[1721183884813,2.86745,3487.5,3486.9,1.700002]
[1721183885013,2.86745,3487.5,3487.0,0.1221603]
[1721183886309,2.86747,3487.4,3487.0,0.1221603]
[1721183888709,2.86747,3487.4,3486.8,2.86791]
[1721183888923,2.86747,3487.4,3487.1,0.12210937]
[1721183889153,2.86747,3487.4,3486.8,2.86791]
[1721183889310,2.86747,3487.4,3487.2,0.12209118]
[1721183889506,2.86767,3487.2,3486.5,0.29970467]
[1721183889745,2.86784,3487.0,3486.3,2.86832]
[1721183890151,2.86787,3486.9,3486.3,2.86832]
[1721183891216,2.36787,3486.9,3486.3,2.86832]
[1721183893474,2.36787,3486.9,3486.3,3.442005]
[1721183894967,2.86795,3486.8,3486.3,0.573685]
[1721183895179,5.31274,3486.7,3486.1,2.86853]
[1721183895679,5.31274,3486.7,3485.9,9.58073176]
[1721183896167,5.31274,3486.7,3486.0,2.86858]
[1721183898074,5.31274,3486.7,3485.9,4.32394176]
[1721183898246,2.86827,3486.5,3485.9,3.29994176]
[1721183898781,2.86827,3486.5,3486.0,0.12230956]
[1721183898946,2.86827,3486.5,3485.9,3.29994176]
[1721183899276,2.86827,3486.5,3486.0,0.12239289]
[1721183899487,2.86827,3486.5,3486.0,1.14639289]
[1721183899641,2.86827,3486.5,3486.0,1.024]
[1721183899971,5.31274,3486.7,3486.1,0.12237468]
[1721183900179,2.86804,3486.7,3486.1,2.45717468]
[1721183900377,2.86804,3486.7,3486.2,1.20689226]
[1721183900587,2.86804,3486.7,3486.2,1.32924874]
[1721183901343,2.86785,3487.0,3486.2,1.32924874]
[1721183901701,2.868,3486.8,3486.2,1.32924874]
[1721183901869,2.868,3486.8,3486.3,1.04250687]
[1721183902069,2.868,3486.8,3486.4,0.12226978]
[1721183902230,2.86805,3486.7,3486.4,0.12226978]
[1721183902648,2.4091,3486.6,3486.4,0.12226978]
[1721183902836,2.4091,3486.6,3486.0,2.86861]
[1721183903037,2.4091,3486.6,3486.5,0.12220635]
[1721183903339,2.4091,3486.6,3486.5,0.12217301]
[1721183903755,2.4091,3486.6,3486.0,3.80822018]
[1721183903969,2.4091,3486.6,3486.5,0.12217301]
[1721183904183,2.4091,3486.6,3486.0,3.80822018]
[1721183904472,2.4091,3486.6,3486.5,0.12217301]
[1721183904695,2.4091,3486.6,3486.0,2.86861]
[1721183904985,2.4091,3486.6,3486.5,0.12217301]
[1721183905479,2.4091,3486.6,3486.0,2.86861]
[1721183905783,2.86826,3486.5,3486.1,0.12222738]
[1721183906236,2.86826,3486.5,3486.2,0.12220918]
[1721183906632,2.86826,3486.5,3485.9,0.29994176]
[1721183906871,2.86828,3486.4,3485.9,1.73410394]
[1721183907240,2.86828,3486.4,3486.0,0.12224559]
[1721183907439,2.86828,3486.4,3485.9,1.73410394]
[1721183907739,2.86828,3486.4,3486.0,0.12224559]
[1721183907934,2.86828,3486.4,3485.9,1.73410394]
[1721183908136,2.86828,3486.4,3486.1,0.12219405]
[1721183908380,2.86828,3486.4,3485.9,0.29994176]
[1721183908579,2.86828,3486.4,3486.2,0.12214252]
[1721183908885,2.86828,3486.4,3485.9,0.29994176]
[1721183909450,2.86828,3486.4,3486.0,0.12217892]
[1721183909673,2.86828,3486.4,3485.9,0.29994176]
[1721183909875,2.86828,3486.4,3485.9,1.00610394]
[1721183910172,2.86828,3486.4,3486.0,0.12216346]
[1721183910335,2.86828,3486.4,3485.9,1.00610394]
[1721183910686,2.86828,3486.4,3486.1,0.12211858]
[1721183910837,2.86828,3486.4,3486.2,0.12206185]
[1721183911347,2.86828,3486.4,3485.9,0.29994176]
[1721183911348,2.86828,3486.4,3486.3,0.12204365]
[1721183911535,2.86828,3486.4,3485.9,0.29994176]
[1721183911759,2.86828,3486.4,3486.3,0.12204365]
[1721183912045,2.8684,3486.3,3485.5,5.20377]
[1721183912237,2.86845,3486.2,3485.5,5.20377]
[1721183912581,2.86845,3486.2,3485.5,2.86897]
[1721183913593,2.86845,3486.2,3485.6,0.12217108]
[1721183914083,2.4868,3486.1,3485.6,0.12217108]
[1721183914263,2.4868,3486.1,3485.5,2.86897]
[1721183914472,2.4868,3486.1,3485.6,0.12217108]
[1721183914681,5.35535,3486.1,3485.2,13.46715]
[1721183914995,2.86862,3486.0,3485.3,3.03959133]
[1721183915205,2.86862,3486.0,3485.3,0.12222571]
[1721183915375,2.86862,3486.0,3485.4,1.024]
[1721183915575,2.86862,3486.0,3485.4,1.1462075]
[1721183915780,2.86862,3486.0,3485.4,4.0153075]
[1721183915974,2.86862,3486.0,3485.4,4.96314071]
[1721183920220,2.86862,3486.0,3485.4,3.93914071]
[1721183920527,2.86862,3486.0,3485.4,1.07004071]
[1721183920887,2.86878,3485.8,3485.4,0.1222075]
[1721183921227,2.86869,3485.9,3485.2,3.89326]
[1721183921735,2.86869,3485.9,3485.3,0.12222571]
[1721183922884,2.86869,3485.9,3485.3,2.99141571]
[1721183923087,2.86869,3485.9,3485.4,0.85846757]
[1721183923336,2.86869,3485.9,3485.4,0.98067507]
[1721183925690,5.35534,3486.1,3485.4,0.98067507]
[1721183926725,2.86861,3486.0,3485.4,0.98067507]
[1721183930029,0.37339334,3485.7,3485.4,0.98067507]
[1721183930537,0.37339334,3485.7,3485.5,0.84927403]
[1721183930696,0.37339334,3485.7,3485.5,0.97150202]
[1721183931995,0.37339334,3485.7,3485.5,3.84050202]
[1721183933307,0.67939364,3485.7,3485.5,3.84050202]
[1721183933834,0.67939364,3485.7,3485.5,0.12222799]
[1721183934740,0.86173989,3485.7,3485.5,0.12222799]
[1721183935110,0.86173989,3485.7,3485.6,0.55]
[1721183935297,0.86173989,3485.7,3485.6,0.67219492]
[1721183936008,1.03460027,3485.7,3485.6,0.67219492]
[1721183937033,1.1607337,3485.7,3485.6,0.67219492]
[1721183938713,1.92634705,3485.7,3485.6,0.67219492]